[Event "CIS Master Groups 2024"]
[Site "Vasto"]
[Date "2024.04.08"]
[Round "1.12"]
[White "Titze, Leo"]
[Black "Pegno, Mattia"]
[Result "1-0"]
[ECO "D45"]
[WhiteElo "2219"]
[BlackElo "2120"]
[Annotator "RC"]
[PlyCount "169"]
[EventDate "2024.04.07"]
[EventType "team-tourn"]
[EventCountry "ITA"]
[SourceTitle "playchess.com"]
[Source "ChessBase"]
[SourceQuality "1"]
[TimeControl "40/5400+30:900+30"]

1. d4 {[%emt 0:00:06]} d5 {[%emt 0:00:13]} 2. c4 {[%emt 0:00:17]} c6 {[%emt 0:01:07]} 3. Nf3 {[%emt 0:00:28]} Nf6 {[%emt 0:00:07]} 4. Nc3 {[%emt 0:00:34]} e6 {[%emt 0:00:25]} 5. e3 {[%emt 0:00:19]} Nbd7 {[%emt 0:00:22]} 6. Qc2 {[%emt 0:00:17]} Bd6 {[%emt 0:01:01]} 7. Be2 {[%emt 0:00:12]} O-O {[%emt 0:02:55]} 8. O-O {[%emt 0:00:10]} dxc4 {[%emt 0:06:44]} 9. a4 {[%emt 0:00:32]} b6 {[%emt 0:03:23]} 10. Bxc4 {[%emt 0:00:47]} Bb7 {[%emt 0:02:31]} 11. b3 {[%emt 0:19:14]} Rc8 {[%emt 0:09:10]} 12. Bb2 {[%emt 0:02:23]} c5 {[%emt 0:03:15]} 13. Rad1 {[%emt 0:00:51]} Bxf3 {[%emt 0:16:53]} 14. gxf3 {[%emt 0:00:06]} cxd4 {[%emt 0:04:37]} 15. Rxd4 {[%emt 0:01:08]} Ne5 {[%emt 0:01:04]} 16. Qd1 {[%emt 0:10:21]} Nd5 {[%emt 0:41:32]} 17. Bxd5 {[%emt 0:06:06]} exd5 {[%emt 0:00:42]} 18. f4 {[%emt 0:00:46]} Qf6 {[%emt 0:02:42]} 19. fxe5 {[%emt 0:06:37]} Bxe5 {[%emt 0:00:08]} 20. Nxd5 {[%emt 0:03:15]} Qh6 {[%emt 0:00:23]} 21. Nf4 {[%emt 0:02:16]} Bxd4 {[%emt 0:01:02]} 22. Bxd4 {[%emt 0:00:02]} Rfd8 {[%emt 0:00:41]} 23. Qg4 {[%emt 0:01:11]} Rc2 {[%emt 0:00:32]} 24. Qg3 {[%emt 0:04:30]} f6 {[%emt 0:00:29]} 25. Kh1 {[%emt 0:00:52]} Qg5 {[%emt 0:00:28]} 26. Qxg5 {[%emt 0:00:56]} fxg5 {[%emt 0:00:09]} 27. Nd3 {[%emt 0:00:35]} Kf7 {[%emt 0:00:50]} 28. Rc1 {[%emt 0:01:03]} Rdc8 {[%emt 0:00:32]} 29. Rxc2 {[%emt 0:00:11]} Rxc2 {[%emt 0:00:04]} 30. Kg2 {[%emt 0:00:10]} g6 {[%emt 0:00:38]} 31. Kf3 {[%emt 0:00:31]} Ke6 {[%emt 0:00:13]} 32. h3 {[%emt 0:02:00]} Rc8 {[%emt 0:01:05]} 33. Ke4 {[%emt 0:02:21]} Rc2 {[%emt 0:00:17]} 34. a5 {[%emt 0:05:20]} bxa5 {[%emt 0:00:37]} 35. Bxa7 {[%emt 0:00:01]} Kd6 {[%emt 0:00:28]} 36. Bd4 {[%emt 0:00:21]} Ra2 {[%emt 0:00:39]} 37. f4 {[%emt 0:01:17]} gxf4 {[%emt 0:00:27]} 38. Kxf4 {[%emt 0:00:21]} Rh2 {[%emt 0:00:33]} 39. Kg3 {[%emt 0:00:36]} Rd2 {[%emt 0:00:26]} 40. Ne5 {[%emt 0:00:49]} Ra2 {[%emt 0:00:24]} 41. h4 {[%emt 0:15:39]} Kd5 {[%emt 0:02:33]} 42. Nc4 {[%emt 0:00:00]} Ke4 {[%emt 0:04:21]} 43. Bb6 {[%emt 0:00:00]} a4 {[%emt 0:01:40]} 44. bxa4 {[%emt 0:00:00]} Rxa4 {[%emt 0:00:35]} 45. Nd6+ {[%emt 0:00:00]} Ke5 {[%emt 0:02:22]} 46. Nf7+ {[%emt 0:00:00]} Kf6 {[%emt 0:00:40]} 47. Nh6 {[%emt 0:00:00]} Kg7 {[%emt 0:02:34]} 48. Ng4 {[%emt 0:00:00]} Kf7 {[%emt 0:00:56]} 49. Bd4 {[%emt 0:00:00]} Ra6 {[%emt 0:01:36]} 50. Kf4 {[%emt 0:00:00]} Ra5 {[%emt 0:00:20]} 51. Ne5+ {[%emt 0:00:00]} Kg8 {[%emt 0:01:43]} 52. Kg5 {[%emt 0:00:00]} Kg7 {[%emt 0:00:31]} 53. Kg4 {[%emt 0:00:00]} Kg8 {[%emt 0:00:54]} 54. Nf3 {[%emt 0:00:00]} h6 {[%emt 0:01:19]} 55. e4 {[%emt 0:00:00]} Ra4 {[%emt 0:00:37]} 56. e5 {[%emt 0:00:00]} Kf7 {[%emt 0:00:23]} 57. Kf4 {[%emt 0:00:00]} Ke6 {[%emt 0:00:29]} 58. Ke4 {[%emt 0:00:00]} Rb4 {[%emt 0:00:35]} 59. Ne1 {[%emt 0:02:10]} g5 {[%emt 0:00:31]} 60. Nd3 {[%emt 0:00:24]} Rb1 {[%emt 0:00:31]} 61. Nc5+ {[%emt 0:00:08]} Ke7 {[%emt 0:00:29]} 62. hxg5 {[%emt 0:04:48]} hxg5 {[%emt 0:00:05]} 63. Be3 {[%emt 0:01:08]} g4 {[%emt 0:00:39]} 64. Bg5+ {[%emt 0:00:51]} Ke8 {[%emt 0:00:46]} 65. Bh4 {[%emt 0:02:38]} Rh1 {[%emt 0:00:24]} 66. Bg3 {[%emt 0:00:28]} Rf1 {[%emt 0:00:33]} 67. Nb7 {[%emt 0:04:25]} Ke7 {[%emt 0:00:33]} 68. Bh4+ {[%emt 0:00:21]} Kd7 {[%emt 0:00:29]} 69. Nc5+ {[%emt 0:01:10]} Ke8 {[%emt 0:00:32]} 70. Nd3 {[%emt 0:02:06]} Kf7 {[%emt 0:00:26]} 71. Nf4 {[%emt 0:03:22]} Rh1 {[%emt 0:00:33]} 72. e6+ {[%emt 0:05:33]} Ke8 {[%emt 0:00:11]} 73. Bf2 {[%emt 0:00:29]} Rf1 {[%emt 0:00:35]} 74. Bg3 {[%emt 0:01:55]} Rg1 {[%emt 0:00:33]} 75. Nh5 {[%emt 0:00:20]} Rg2 {[%emt 0:00:43]} 76. Ke5 {[%emt 0:01:50]} Re2+ {[%emt 0:00:28]} 77. Kf6 {[%emt 0:00:06]} Re3 {[%emt 0:00:32]} 78. Bf4 {[%emt 0:01:26]} Re1 {[%emt 0:00:28]} 79. Ng7+ {[%emt 0:00:42]} Kd8 {[%emt 0:00:31]} 80. Kf7 {[%emt 0:03:25]} g3 {[%emt 0:00:29]} 81. Bxg3 {[%emt 0:00:38]} Rf1+ {[%emt 0:00:09]} 82. Kg8 {[%emt 0:00:40]} Rh1 {[%emt 0:00:45]} 83. Bf2 {[%emt 0:01:42]} Rf1 {[%emt 0:00:37]} 84. Bh4+ {[%emt 0:00:10]} Kc7 {[%emt 0:00:27]} 85. e7 {[%emt 0:00:07]} 1-0

[Event "CIS Master Groups 2024"]
[Site "Vasto"]
[Date "2024.04.08"]
[Round "1.13"]
[White "Shevchenko, Kirill"]
[Black "Socko, Bartosz"]
[Result "1-0"]
[ECO "A25"]
[WhiteElo "2675"]
[BlackElo "2565"]
[Annotator "TA"]
[PlyCount "85"]
[EventDate "2024.04.07"]
[EventType "team-tourn"]
[EventCountry "ITA"]
[SourceTitle "playchess.com"]
[Source "ChessBase"]
[SourceQuality "1"]
[TimeControl "40/5400+30:900+30"]

{[%evp 10,85,15,6,3,8,14,18,9,5,18,0,0,0,0,0,0,0,0,0,0,-6,17,13,22,18,37,39,41,48,57,45,51,67,79,74,56,55,73,65,82,73,89,84,118,117,117,117,117,118,154,130,150,150,150,150,157,150,170,121,127,121,197,197,197,197,202,202,29965,29967,29964,408,29969,29968,29964,29966,29980,29981]} 1. c4 {[%emt 0:00:07]} e5 {[%emt 0:00:08]} 2. Nc3 {[%emt 0:00:13]} Nc6 {[%emt 0:00:06]} 3. Nf3 {[%emt 0:00:34]} Nf6 {[%emt 0:00:06]} 4. g3 {[%emt 0:00:36]} Bc5 {[%emt 0:04:36]} 5. Bg2 {[%emt 0:02:33]} O-O {[%emt 0:00:33]} 6. d3 {[%emt 0:05:13][%cal Of3e5]} Re8 {[%emt 0:01:40]} 7. Bg5 {[%emt 0:04:03]} h6 {[%emt 0:02:10]} 8. Bxf6 {[%emt 0:00:41]} Qxf6 {[%emt 0:00:07] The position is equal.} 9. O-O {[%emt 0:00:40]} a6 {[%emt 0:06:32]} 10. Nd2 {[%emt 0:10:05]} (10. Ne4 $5 Qe7 $8 11. e3 $11) 10... Qd8 {[%emt 0:01:52]} 11. Rb1 {[%emt 0:12:53]} d6 {[%emt 0:03:20]} 12. e3 {[%emt 0:01:42]} Bf5 {[%emt 0:03:12]} 13. Nde4 {[%emt 0:03:26]} Ba7 {[%emt 0:00:45]} 14. b4 {[%emt 0:00:09]} Ne7 {[%emt 0:02:08]} 15. b5 {[%emt 0:11:06]} c6 {[%emt 0:23:30]} 16. bxc6 {[%emt 0:07:02]} bxc6 {[%emt 0:00:22] [#]} 17. c5 $1 {[%emt 0:01:14]} Bxc5 {[%emt 0:01:42]} (17... dxc5 18. Qc2) 18. Nxc5 {[%emt 0:00:06]} dxc5 {[%emt 0:00:05]} 19. Ne4 {[%emt 0:00:28]} Bxe4 {[%emt 0:03:34]} 20. dxe4 {[%emt 0:08:36]} Qa5 {[%emt 0:05:53]} 21. Qc2 {[%emt 0:01:46]} Rab8 {[%emt 0:06:03]} 22. Rxb8 {[%emt 0:02:57]} Rxb8 {[%emt 0:00:11]} 23. Rc1 {[%emt 0:00:03][%cal Og2f1]} Qa3 {[%emt 0:06:42]} 24. Bf1 {[%emt 0:01:16][%cal Bg2f1,Bf1a6,Ba6d3][%mdl 32]} Ng6 {[%emt 0:03:42]} ({Much worse is} 24... Rb2 25. Qxc5 Qxc5 26. Rxc5 Rxa2 27. Rxe5 $11) 25. Qxc5 {[%emt 0:05:22]} Qxa2 {[%emt 0:02:20]} 26. Qxc6 {[%emt 0:00:14]} Qd2 {[%emt 0:07:43] aiming for ...Rb2.} 27. Bxa6 {[%emt 0:04:14]} Rb6 {[%emt 0:01:10]} 28. Qxb6 {[%emt 0:03:21]} Qxc1+ $16 {[%emt 0:00:07][%mdl 4096] Endgame. KQB-KQN} 29. Kg2 {[%emt 0:00:08] White is more active.} Kh7 {[%emt 0:01:32]} 30. Qd6 {[%emt 0:02:20]} Qb1 {[%emt 0:01:21]} 31. Qd5 {[%emt 0:04:59]} f6 {[%emt 0:00:06]} 32. Bd3 {[%emt 0:01:38]} Qb8 {[%emt 0:02:05]} 33. h4 {[%emt 0:01:46]} Qc8 {[%emt 0:00:25][%cal Og6h4]} 34. Bc4 {[%emt 0:01:56]} (34. Be2 $18) 34... Ne7 {[%emt 0:07:55]} 35. Qf7 {[%emt 0:00:07][%cal Oc4e6]} Qb7 {[%emt 0:00:25]} (35... Qg4 $16) 36. Kf3 $18 {[%emt 0:02:39] Threatens to win with Be6.} Qd7 {[%emt 0:02:23]} 37. Be6 {[%emt 0:01:43]} Qd8 {[%emt 0:00:31]} 38. g4 {[%emt 0:01:01]} Nc6 $2 {[%emt 0:01:34] [#]} (38... Qd1+ $18 39. Kg2 Qd8) 39. g5 $1 {[%emt 0:00:29][%mdl 512]} fxg5 {[%emt 0:00:43]} 40. Bf5+ {[%emt 0:00:21]} Kh8 {[%emt 0:00:04]} 41. Qg6 {[%emt 0:15:02][%csl Gf5][%cal Rg6h7] White mates.} Kg8 {[%emt 0:01:51]} 42. Qxc6 {[%emt 0:00:00]} gxh4 {[%emt 0:00:35]} 43. Qd5+ {[%emt 0:00:00] Weighted Error Value: White=0.03 (flawless) /Black=0.29 (precise) .  Mistake:       	White=1     	Black=2      Inaccurate:     	---       	Black=2      OK:         	White=19    	Black=14     Best:        	White=2     	Black=1      Brilliant:      	White=1     	---} 1-0

[Event "CIS Master Groups 2024"]
[Site "Vasto"]
[Date "2024.04.08"]
[Round "1.14"]
[White "Rombaldoni, Denis"]
[Black "Lodici, Lorenzo"]
[Result "1-0"]
[ECO "D00"]
[WhiteElo "2484"]
[BlackElo "2565"]
[Annotator "TA"]
[PlyCount "69"]
[EventDate "2024.04.07"]
[EventType "team-tourn"]
[EventCountry "ITA"]
[SourceTitle "playchess.com"]
[Source "ChessBase"]
[SourceQuality "1"]
[TimeControl "40/5400+30:900+30"]

{[%evp 9,69,-22,-2,-12,0,-12,0,-6,0,0,0,-43,-25,-31,0,-5,0,0,0,0,0,0,25,0,0,0,55,0,77,63,62,85,816,814,810,822,953,947,1143,1150,1102,968,927,578,536,431,418,431,423,405,410,320,391,396,531,526,520,523,593,580,922,897]} 1. d4 {[%emt 0:00:06]} Nf6 {[%emt 0:05:20]} 2. Nc3 {[%emt 0:00:24]} d5 {[%emt 0:00:30]} 3. Bf4 {[%emt 0:00:11]} a6 {[%emt 0:03:00]} 4. e3 {[%emt 0:00:13]} b5 {[%emt 0:00:04]} 5. h4 {[%emt 0:00:14]} h6 {[%emt 0:00:53]} 6. Bd3 {[%emt 0:02:02]} e6 {[%emt 0:01:43]} 7. Nce2 {[%emt 0:04:38]} Nbd7 {[%emt 0:04:49]} 8. Nf3 {[%emt 0:01:00] The position is equal.} c5 {[%emt 0:00:07]} 9. c3 {[%emt 0:00:44]} Bb7 {[%emt 0:01:05]} 10. h5 {[%emt 0:14:12]} b4 {[%emt 0:08:40]} 11. Ne5 {[%emt 0:11:11][%cal Oe5g6]} Qa5 {[%emt 0:06:55]} 12. Kf1 {[%emt 0:02:00]} Be7 {[%emt 0:03:45]} 13. cxb4 {[%emt 0:07:06]} Qxb4 {[%emt 0:00:07]} 14. a3 {[%emt 0:01:51]} Qb6 {[%emt 0:00:32]} 15. Rh3 {[%emt 0:00:25][%cal Bh1h3,Bh3f3,Bf3f7][%mdl 32]} Bd6 {[%emt 0:06:08]} 16. Nc3 {[%emt 0:09:38]} Qc7 {[%emt 0:11:31]} 17. Nxd7 {[%emt 0:03:55]} Nxd7 {[%emt 0:00:24]} ({Better is} 17... Qxd7 $11 18. dxc5 Bxc5) 18. Qg4 {[%emt 0:00:23]} ({White should try} 18. Bxd6 $14 Qxd6 19. Qg4) 18... Ke7 {[%emt 0:05:32]} (18... Bxf4 $11 19. exf4 Kf8) 19. Rf3 $16 {[%emt 0:03:12] Threatens to win with Bxd6+. White is much more active.} (19. Qxg7 $2 Bxf4 20. Bg6 Bg5 21. Qxf7+ Kd6 22. dxc5+ Nxc5 $19) 19... Rag8 {[%emt 0:11:56]} 20. Qh4+ {[%emt 0:07:23]} Ke8 $2 {[%emt 0:00:39][%mdl 8192] [#] A mistake that costs the game.} (20... Nf6 $16) 21. Bxd6 $1 $18 {[%emt 0:00:33]} Qxd6 {[%emt 0:00:02] [#]} 22. Rxf7 $3 {[%emt 0:00:21][%mdl 512] Bg6 is the strong threat.} g5 {[%emt 0:13:14]} (22... Rf8 23. Rxg7) 23. hxg6 {[%emt 0:00:13]} Rf8 {[%emt 0:00:01]} 24. dxc5 {[%emt 0:09:13]} Qxc5 {[%emt 0:02:32]} 25. Qf4 {[%emt 0:07:41]} Rhg8 {[%emt 0:01:36]} 26. Rxf8+ {[%emt 0:01:04]} Rxf8 {[%emt 0:00:26]} 27. g7 {[%emt 0:01:35]} Rxf4 {[%emt 0:00:37]} 28. g8=Q+ {[%emt 0:00:05]} (28. g8=R+ $2 Rf8 29. Rxf8+ Kxf8 $19) 28... Rf8 {[%emt 0:00:16]} 29. Qxe6+ {[%emt 0:00:06]} Kd8 {[%emt 0:00:03]} 30. Bf5 {[%emt 0:05:00]} ({Weaker is} 30. Bxa6 Rf6 31. Qg8+ Rf8 $14) 30... Bc6 {[%emt 0:01:28]} 31. Rd1 {[%emt 0:01:07]} d4 {[%emt 0:01:09]} 32. Bh3 {[%emt 0:01:44] White is clearly winning.} (32. exd4 Qxf5 33. Qxf5 Rxf5 $17) 32... Rf6 {[%emt 0:05:40]} 33. Qg8+ {[%emt 0:00:43]} Rf8 {[%emt 0:02:27]} 34. Qg4 {[%emt 0:00:46]} ({And not} 34. exd4 Qb5+ 35. Kg1 Rxg8 $17) 34... Qc4+ {[%emt 0:01:02]} 35. Kg1 {[%emt 0:00:52] Weighted Error Value: White=0.45/Black=0.35.  Loses game:     	---       	Black=1      Mistake:       	White=1     	Black=2      Inaccurate:     	White=1     	Black=3      OK:         	White=12    	Black=6      Best:        	White=2     	Black=1      Strong:       	White=1     	---} 1-0

[Event "CIS Master Groups 2024"]
[Site "Vasto"]
[Date "2024.04.08"]
[Round "1.15"]
[White "Barp, Alberto"]
[Black "Garcia Palermo, Carlos Horacio"]
[Result "0-1"]
[ECO "E17"]
[WhiteElo "2470"]
[BlackElo "2407"]
[Annotator "TA"]
[PlyCount "82"]
[EventDate "2024.04.07"]
[EventType "team-tourn"]
[EventCountry "ITA"]
[SourceTitle "playchess.com"]
[Source "ChessBase"]
[SourceQuality "1"]
[TimeControl "40/5400+30:900+30"]

{[%evp 11,82,22,19,12,13,0,0,0,0,-12,0,-2,-8,-3,68,58,69,56,113,107,110,99,96,83,128,49,58,51,56,53,48,46,70,64,79,0,0,-45,-46,-85,-87,-88,-85,-93,-82,-80,-86,-150,-120,-137,-135,-94,0,-85,-94,-96,-63,-70,-79,-52,-72,-70,-75,-69,-78,-54,-57,-94,-95,-657,-657,-1725,-1708]} 1. d4 {[%emt 0:00:14]} Nf6 {[%emt 0:00:38]} 2. c4 {[%emt 0:00:16]} e6 {[%emt 0:00:19]} 3. Nf3 {[%emt 0:00:14]} b6 {[%emt 0:00:36]} 4. g3 {[%emt 0:00:11]} Bb7 {[%emt 0:00:26]} 5. Bg2 {[%emt 0:00:04]} Be7 {[%emt 0:00:22]} 6. O-O {[%emt 0:00:07]} O-O {[%emt 0:00:13]} 7. h4 {[%emt 0:01:58]} Na6 {[%emt 0:02:00]} 8. a3 {[%emt 0:01:44]} c5 {[%emt 0:02:20]} 9. d5 {[%emt 0:01:48] The position is equal.} exd5 {[%emt 0:00:32]} 10. Nh2 {[%emt 0:00:07]} Nc7 {[%emt 0:04:04]} 11. Nc3 {[%emt 0:00:30][%cal Rc4d5] [#]} b5 $1 {[%emt 0:03:02]} 12. Nxd5 {[%emt 0:01:56]} Bxd5 {[%emt 0:05:31]} ({Black should play} 12... Rb8 $11) 13. cxd5 $14 {[%emt 0:00:11]} d6 {[%emt 0:00:22]} 14. e4 {[%emt 0:05:27]} a5 {[%emt 0:09:31]} (14... Re8 $14) 15. g4 $1 $16 {[%emt 0:08:59][%cal Bg3g4,Bg4g5,Bg5g6,Bg6h7][%mdl 32]} Nd7 {[%emt 0:09:06][%cal Bf6d7,Bd7c5,Bc5b3,Bb3c1][%mdl 32]} 16. g5 {[%emt 0:00:55]} c4 {[%emt 0:01:22]} 17. f4 {[%emt 0:15:02]} Nc5 {[%emt 0:11:01]} 18. f5 {[%emt 0:12:59]} (18. Be3 $16) 18... Nb3 $14 {[%emt 0:07:22]} 19. Rb1 {[%emt 0:04:59]} (19. f6 {keeps more tension.} gxf6 20. Ng4 fxg5 21. Be3) 19... Nxc1 {[%emt 0:00:25]} 20. Rxc1 {[%emt 0:00:23][%cal Of5f6]} f6 {[%emt 0:00:09]} 21. g6 {[%emt 0:04:03]} Qe8 {[%emt 0:09:29]} 22. gxh7+ {[%emt 0:16:12]} Kh8 {[%emt 0:03:19][%cal Oe7d8]} 23. Qg4 {[%emt 0:00:59]} ({Better is} 23. Nf3 $1 $16) 23... Na6 $11 {[%emt 0:00:30][%cal Oa6c5]} 24. Rf3 {[%emt 0:01:54]} Ra7 {[%emt 0:01:00][%cal Oa6c5][%mdl 1024] Black has compensation.} 25. Nf1 {[%emt 0:01:28]} Bd8 {[%emt 0:00:33][%cal Be7d8,Bd8b6,Bb6e3,Be3h6][%mdl 32]} 26. Kh1 {[%emt 0:06:10]} Nc5 {[%emt 0:00:18][%cal Od8b6]} 27. Ng3 {[%emt 0:02:42]} Nd3 {[%emt 0:02:41]} 28. Rxd3 {[%emt 0:00:26]} cxd3 {[%emt 0:00:07]} 29. Nh5 {[%emt 0:01:33]} (29. Rc6 $142) 29... Bb6 $1 $17 {[%emt 0:01:24][%cal Ob6e3]} (29... Kxh7 $6 30. Nf4 $15) 30. Nf4 {[%emt 0:08:44]} Be3 $1 {[%emt 0:00:23] The board is on fire.} (30... Kxh7 31. Rc6 Be3 32. Nxd3 $15) 31. Ng6+ {[%emt 0:00:33] [#]} Kxh7 {[%emt 0:00:08]} (31... Qxg6 $1 $17 32. fxg6 Bxc1) 32. Rc3 {[%emt 0:03:09]} (32. Nxf8+ $11 Qxf8 33. Rc6) 32... Rff7 {[%emt 0:03:27]} 33. Rxd3 {[%emt 0:00:03] [#]} Bh6 {[%emt 0:00:11]} 34. e5 {[%emt 0:00:28]} fxe5 {[%emt 0:01:13]} (34... dxe5 35. d6 $11) 35. f6 {[%emt 0:00:56]} Rxf6 {[%emt 0:01:10] ...e4 is the strong threat.} 36. Be4 {[%emt 0:00:03]} Rc7 {[%emt 0:04:42]} (36... Rxg6 37. Rg3 Kg8 38. Bxg6 $14 (38. Qxg6 Qxg6 39. Rxg6 Bc1 $15)) 37. Rf3 {[%emt 0:00:18]} Rxf3 $1 {[%emt 0:03:00]} (37... Rxg6 38. h5 Rc1+ 39. Kg2 $16) 38. Qxf3 {[%emt 0:00:21][%cal Oe4f5]} Kg8 {[%emt 0:01:32] ...Rf7 would now be deadly.} 39. Qg4 {[%emt 0:01:13]} Rc4 {[%emt 0:05:58] And now ...Bc1 would win.} 40. Qf5 $2 {[%emt 0:00:37][%mdl 8192]} (40. b3 $17 Rxe4 41. Qxe4) 40... Qf7 $19 {[%emt 0:05:02]} 41. Qh3 {[%emt 0:09:56]} Rc1+ {[%emt 0:02:00] Weighted Error Value: White=0.47/Black=0.08 (flawless) .  Loses game:     	White=1     	---        Mistake:       	White=4     	Black=3      Inaccurate:     	White=4     	Black=1      OK:         	White=9     	Black=17     Best:        	White=6     	Black=4      Strong:       	White=1     	Black=3      Brilliant:      	---       	Black=1} ({And not} 41... Rxe4 42. Qc8+ Kh7 43. Nf8+ Kh8 44. Ng6+ Kh7 45. Nf8+ Kh8 46. Ng6+ Kh7 $11) 0-1

[Event "CIS Master Groups 2024"]
[Site "Vasto"]
[Date "2024.04.08"]
[Round "1.17"]
[White "Mastrovasilis, Dimitrios"]
[Black "Stella, Andrea"]
[Result "1-0"]
[ECO "B52"]
[WhiteElo "2576"]
[BlackElo "2403"]
[Annotator "TA"]
[PlyCount "139"]
[EventDate "2024.04.07"]
[EventType "team-tourn"]
[EventCountry "ITA"]
[SourceTitle "playchess.com"]
[Source "ChessBase"]
[SourceQuality "1"]
[TimeControl "40/5400+30:900+30"]

{[%evp 56,139,0,0,0,-25,0,0,0,0,0,0,0,0,0,0,0,0,0,0,0,0,17,9,11,20,104,142,115,77,261,256,377,368,368,368,552,533,543,438,614,596,636,614,866,817,816,695,991,675,687,653,677,618,623,200,120,0,552,509,698,689,834,834,1154,1127,1327,1234,1593,1235,1569,1462,1161,818,1395,1622,2814,2916,2773,2592,5240,3411,29981,29981,29980,29979]} 1. e4 {[%emt 0:00:08]} c5 {[%emt 0:00:06]} 2. Nf3 {[%emt 0:00:15]} d6 {[%emt 0:00:05]} 3. Bb5+ {[%emt 0:00:23]} Bd7 {[%emt 0:00:05]} 4. Bxd7+ {[%emt 0:00:29]} Qxd7 {[%emt 0:00:04]} 5. O-O {[%emt 0:00:22]} Nf6 {[%emt 0:00:13]} 6. Qe2 {[%emt 0:00:37]} Nc6 {[%emt 0:00:31]} 7. c3 {[%emt 0:00:27]} e6 {[%emt 0:00:10]} 8. d4 {[%emt 0:00:34]} cxd4 {[%emt 0:00:08]} 9. cxd4 {[%emt 0:00:07]} d5 {[%emt 0:00:12]} 10. e5 {[%emt 0:00:24]} Ne4 {[%emt 0:00:06]} 11. Nbd2 {[%emt 0:00:43]} Nxd2 {[%emt 0:00:06]} 12. Bxd2 {[%emt 0:00:09]} Bb4 {[%emt 0:00:04]} 13. Bf4 {[%emt 0:01:44]} Rc8 {[%emt 0:01:15]} 14. h4 {[%emt 0:01:07]} h6 {[%emt 0:02:21]} 15. Rfd1 {[%emt 0:03:47]} Ne7 {[%emt 0:00:52]} 16. h5 {[%emt 0:03:19]} Qc6 {[%emt 0:12:33]} 17. Rac1 {[%emt 0:44:21]} Qa6 {[%emt 0:11:04]} 18. Qxa6 {[%emt 0:02:22]} bxa6 {[%emt 0:00:04]} 19. Bd2 {[%emt 0:00:27]} Rxc1 {[%emt 0:06:15]} 20. Rxc1 {[%emt 0:00:13]} Bxd2 {[%emt 0:00:02]} 21. Nxd2 {[%emt 0:00:11]} Kd7 {[%emt 0:00:03]} 22. Nb3 {[%emt 0:04:55]} Rb8 {[%emt 0:02:30]} 23. Rc3 {[%emt 0:12:08]} a5 {[%emt 0:12:07]} 24. Kf1 {[%emt 0:12:09]} Kd8 {[%emt 0:04:51]} 25. Rc2 {[%emt 0:03:58]} a4 {[%emt 0:09:17]} 26. Nc1 {[%emt 0:00:18]} Nf5 {[%emt 0:09:25]} 27. Ne2 {[%emt 0:01:54]} Rb4 {[%emt 0:00:58]} 28. Rd2 {[%emt 0:00:12]} Kd7 {[%emt 0:02:36]} 29. Ke1 {[%emt 0:03:11]} Nh4 {[%emt 0:03:34]} 30. Kf1 {[%emt 0:00:05]} Nf5 {[%emt 0:00:04]} (30... a3 $5 31. b3 $8 g6 $15) 31. a3 {[%emt 0:03:19]} Rc4 $1 {[%emt 0:00:08]} 32. Ke1 {[%emt 0:00:12]} Nh4 {[%emt 0:00:31]} 33. Kf1 {[%emt 0:00:05]} Nf5 {[%emt 0:00:03]} 34. g4 {[%emt 0:01:52]} Ne7 {[%emt 0:00:27]} 35. Ke1 {[%emt 0:00:09]} g6 {[%emt 0:16:05]} 36. hxg6 {[%emt 0:00:32]} fxg6 {[%emt 0:00:06]} 37. f3 {[%emt 0:00:13]} h5 {[%emt 0:00:17]} 38. Kf2 {[%emt 0:00:25]} hxg4 {[%emt 0:08:51]} 39. fxg4 {[%emt 0:00:06]} Nc6 {[%emt 0:00:59]} 40. Ke3 {[%emt 0:01:45]} Na5 {[%emt 0:00:26]} (40... g5 $11) 41. Kf4 $16 {[%emt 0:04:09]} Nb3 {[%emt 0:00:48]} 42. Rd3 {[%emt 0:00:19]} Nc5 $2 {[%emt 0:04:25]} (42... Rc2 $16 43. Nc3 Nc1 (43... Rxb2 $2 44. Nxa4 Rd2 45. Nc5+ Kc6 46. Rxd2 $18)) 43. Rc3 $18 {[%emt 0:03:29]} Rxc3 {[%emt 0:09:39]} (43... g5+ $142 44. Ke3 (44. Kxg5 $2 {is the wrong capture.} Ne4+ 45. Kh6 Nxc3 $19) 44... Nb3) 44. Nxc3 $18 {[%emt 0:01:30]} Nb3 {[%emt 0:00:12]} 45. Ke3 {[%emt 0:07:06]} (45. Nxa4 Nxd4 46. Nc5+ Ke7 $14) 45... Kc6 {[%emt 0:01:04]} (45... g5 {was called for.} 46. Nxa4 Kc6) 46. g5 $18 {[%emt 0:00:29]} ({Worse is} 46. Nxa4 Kb5 47. Nc3+ Kc4 $11) 46... Na5 {[%emt 0:00:56]} 47. Kd3 {[%emt 0:00:33]} ({Weaker is} 47. Nxa4 Kb5 48. Nc5 Kc4 49. Nxe6 Nc6 $18) 47... Kd7 {[%emt 0:01:30]} (47... Nb7 $142 48. Nxa4 a5) 48. Nxa4 $18 {[%emt 0:01:16]} Nc4 {[%emt 0:00:33]} 49. Nc5+ {[%emt 0:00:44]} Ke7 {[%emt 0:00:01]} 50. Kc3 {[%emt 0:00:19]} Ne3 {[%emt 0:00:08]} 51. Nd3 {[%emt 0:00:23]} Kf7 {[%emt 0:00:36]} 52. Nf2 {[%emt 0:01:00]} Ke7 {[%emt 0:01:11]} 53. b3 {[%emt 0:00:19]} Ng2 {[%emt 0:00:31]} 54. Nh3 {[%emt 0:00:42]} Nh4 {[%emt 0:00:38]} 55. Kb4 $2 {[%emt 0:00:27]} (55. Nf4 Kf7 56. b4) 55... Nf3 $18 {[%emt 0:00:11]} 56. Kc3 {[%emt 0:00:27]} ({Better is} 56. Nf4 $16) 56... Kd7 $2 {[%emt 0:00:45][%mdl 8192]} (56... Nh4 $1 $11 57. Nf4 Kf7) 57. Kd3 {[%emt 0:00:31]} Ke7 {[%emt 0:00:31]} 58. b4 {[%emt 0:00:30]} Ne1+ {[%emt 0:00:19]} 59. Kc3 {[%emt 0:00:20]} Nf3 {[%emt 0:00:48]} 60. b5 {[%emt 0:00:18]} Nh4 {[%emt 0:00:32]} 61. a4 {[%emt 0:00:24]} Nf3 {[%emt 0:00:15]} 62. a5 {[%emt 0:00:32]} Kd7 {[%emt 0:00:04]} 63. Kd3 {[%emt 0:00:28]} Ne1+ {[%emt 0:00:06]} 64. Kd2 {[%emt 0:00:22]} Nf3+ {[%emt 0:00:10]} 65. Ke3 {[%emt 0:00:32]} Nh4 {[%emt 0:00:01]} 66. Nf4 {[%emt 0:00:24]} Nf5+ {[%emt 0:00:07]} 67. Kd3 {[%emt 0:00:05]} Nh4 {[%emt 0:00:20]} 68. Nxe6 {[%emt 0:01:37]} Kxe6 {[%emt 0:00:17]} 69. b6 {[%emt 0:00:02]} axb6 {[%emt 0:00:13]} 70. a6 {[%emt 0:00:19]} 1-0